[Event "*** Titled Tuesday Blitz"]
[Site "Chess.com"]
[Date "2020.05.19"]
[Round "7"]
[White "pfalcon1949"]
[Black "Karina_Ivanova"]
[Result "1/2-1/2"]
[WhiteElo "1966"]
[BlackElo "2199"]
[TimeControl "180+1"]
[EndTime "13:19:46 PDT"]
[Termination "Game drawn by repetition"]

1. d4 {[%clk 0:03:00.9]} 1... Nf6 {[%clk 0:02:59.4]} 2. c4 {[%clk 0:03:00.6]}
2... e6 {[%clk 0:02:58.7]} 3. Nc3 {[%clk 0:02:59.4]} 3... Bb4 {[%clk 0:02:57.7]}
4. Qc2 {[%clk 0:02:59]} 4... c5 {[%clk 0:02:57.9]} 5. dxc5 {[%clk 0:02:52]} 5...
Bxc5 {[%clk 0:02:57.5]} 6. Nf3 {[%clk 0:02:51.9]} 6... a6 {[%clk 0:02:56.1]} 7.
Bg5 {[%clk 0:02:51.6]} 7... Qc7 {[%clk 0:02:54.2]} 8. e3 {[%clk 0:02:51.3]} 8...
Be7 {[%clk 0:02:53.4]} 9. Be2 {[%clk 0:02:51]} 9... b6 {[%clk 0:02:52.3]} 10.
O-O {[%clk 0:02:50.9]} 10... Bb7 {[%clk 0:02:52.3]} 11. b3 {[%clk 0:02:50.6]}
11... d6 {[%clk 0:02:51.9]} 12. Rac1 {[%clk 0:02:50.4]} 12... Nbd7 {[%clk
0:02:52.4]} 13. Rfd1 {[%clk 0:02:50.2]} 13... O-O {[%clk 0:02:52]} 14. a4 {[%clk
0:02:49.8]} 14... Rac8 {[%clk 0:02:51.1]} 15. Bh4 {[%clk 0:02:30.6]} 15... Rfd8
{[%clk 0:02:49.8]} 16. Bg3 {[%clk 0:02:29.9]} 16... Nh5 {[%clk 0:02:43.3]} 17.
Ng5 {[%clk 0:02:11.6]} 17... Bxg5 {[%clk 0:02:39.9]} 18. Bxh5 {[%clk 0:02:11.1]}
18... Be7 {[%clk 0:02:34.9]} 19. Be2 {[%clk 0:02:02.3]} 19... Nf6 {[%clk
0:02:32.7]} 20. f3 {[%clk 0:02:02.1]} 20... Qc5 {[%clk 0:02:27.5]} 21. Bf2
{[%clk 0:01:53]} 21... Qc7 {[%clk 0:02:26.3]} 22. Bd3 {[%clk 0:01:44.3]} 22...
h6 {[%clk 0:02:18.5]} 23. Ne4 {[%clk 0:01:43.2]} 23... d5 {[%clk 0:02:05.6]} 24.
Nxf6+ {[%clk 0:01:41.8]} 24... Bxf6 {[%clk 0:02:04.9]} 25. cxd5 {[%clk
0:01:39.7]} 25... Qxc2 {[%clk 0:02:03.7]} 26. Bxc2 {[%clk 0:01:31.7]} 26... exd5
{[%clk 0:01:51.3]} 27. Bd3 {[%clk 0:01:28.6]} 27... Rxc1 {[%clk 0:01:48]} 28.
Rxc1 {[%clk 0:01:29.5]} 28... d4 {[%clk 0:01:48]} 29. e4 {[%clk 0:01:19.1]}
29... Rc8 {[%clk 0:01:44.9]} 30. Rxc8+ {[%clk 0:01:16.2]} 30... Bxc8 {[%clk
0:01:45]} 31. Bc4 {[%clk 0:01:14.8]} 31... a5 {[%clk 0:01:40.5]} 32. Kf1 {[%clk
0:01:14.2]} 32... Be6 {[%clk 0:01:39.6]} 33. Ke2 {[%clk 0:01:13.1]} 33... Kf8
{[%clk 0:01:29.3]} 34. Kd3 {[%clk 0:01:13.1]} 34... Ke7 {[%clk 0:01:28.8]} 35.
Bxd4 {[%clk 0:01:11.6]} 35... Bxd4 {[%clk 0:01:28.7]} 36. Kxd4 {[%clk
0:01:11.8]} 36... Bd7 {[%clk 0:01:28.7]} 37. f4 {[%clk 0:01:10.8]} 37... f6
{[%clk 0:01:28.6]} 38. g3 {[%clk 0:01:10.5]} 38... g5 {[%clk 0:01:27.8]} 39. e5
{[%clk 0:01:09.4]} 39... gxf4 {[%clk 0:01:26.5]} 40. gxf4 {[%clk 0:01:09.5]}
40... Bc6 {[%clk 0:01:18.9]} 41. f5 {[%clk 0:01:06.4]} 41... Bb7 {[%clk
0:01:12.1]} 42. e6 {[%clk 0:01:04.4]} 42... Kd6 {[%clk 0:01:08.5]} 43. h4 {[%clk
0:01:03.7]} 43... Bc6 {[%clk 0:01:04.5]} 44. Bb5 {[%clk 0:00:59.7]} 44... Bf3
{[%clk 0:01:01.3]} 45. Ke3 {[%clk 0:00:54.6]} 45... Bd1 {[%clk 0:00:59.5]} 46.
Bc4 {[%clk 0:00:53.8]} 46... Bc2 {[%clk 0:00:56.6]} 47. Kf4 {[%clk 0:00:53.9]}
47... Bd1 {[%clk 0:00:51.4]} 48. Kg3 {[%clk 0:00:50.3]} 48... Bc2 {[%clk
0:00:48.7]} 49. Kf4 {[%clk 0:00:50.7]} 49... Bd1 {[%clk 0:00:48.7]} 50. Ke4
{[%clk 0:00:46.4]} 50... Bc2+ {[%clk 0:00:47.7]} 51. Kf4 {[%clk 0:00:46.8]}
1/2-1/2

[Event "*** Titled Tuesday Blitz"]
[Site "Chess.com"]
[Date "2020.05.19"]
[Round "7"]
[White "BakaPG"]
[Black "MidnightFox"]
[Result "1-0"]
[WhiteElo "2615"]
[BlackElo "2477"]
[TimeControl "180+1"]
[EndTime "13:19:49 PDT"]
[Termination "BakaPG won on time"]

1. e4 {[%clk 0:03:00.9]} 1... e5 {[%clk 0:02:58.3]} 2. Nf3 {[%clk 0:02:59.8]}
2... Nc6 {[%clk 0:02:58.6]} 3. Bb5 {[%clk 0:02:59.5]} 3... a6 {[%clk 0:02:58.6]}
4. Ba4 {[%clk 0:02:58.8]} 4... Nf6 {[%clk 0:02:58.6]} 5. O-O {[%clk 0:02:57.7]}
5... b5 {[%clk 0:02:58.9]} 6. Bb3 {[%clk 0:02:58.3]} 6... Bc5 {[%clk 0:02:59.5]}
7. c3 {[%clk 0:02:57.1]} 7... d6 {[%clk 0:02:59.4]} 8. a4 {[%clk 0:02:55]} 8...
Rb8 {[%clk 0:02:59]} 9. axb5 {[%clk 0:02:54.2]} 9... axb5 {[%clk 0:02:58.9]} 10.
d4 {[%clk 0:02:54.8]} 10... Bb6 {[%clk 0:02:58.7]} 11. Be3 {[%clk 0:02:46.6]}
11... O-O {[%clk 0:02:56.1]} 12. h3 {[%clk 0:02:44.1]} 12... Bb7 {[%clk
0:02:53]} 13. Nbd2 {[%clk 0:02:36.9]} 13... Re8 {[%clk 0:02:47.7]} 14. Re1
{[%clk 0:02:32.9]} 14... exd4 {[%clk 0:02:43.3]} 15. cxd4 {[%clk 0:02:30.3]}
15... Na5 {[%clk 0:02:29.1]} 16. Bc2 {[%clk 0:02:28.5]} 16... Nxe4 {[%clk
0:02:21.2]} 17. Nxe4 {[%clk 0:02:23.7]} 17... Bxe4 {[%clk 0:02:21.1]} 18. Bxe4
{[%clk 0:02:23.1]} 18... Rxe4 {[%clk 0:02:21.1]} 19. Qd3 {[%clk 0:02:12.7]}
19... Re8 {[%clk 0:01:59.7]} 20. Qxb5 {[%clk 0:02:00.4]} 20... c6 {[%clk
0:01:46]} 21. Qh5 {[%clk 0:01:57]} 21... f6 {[%clk 0:01:18.5]} 22. Bd2 {[%clk
0:01:28.5]} 22... Nb3 {[%clk 0:01:12.6]} 23. Rad1 {[%clk 0:01:20.4]} 23... Nxd2
{[%clk 0:01:10.2]} 24. Nxd2 {[%clk 0:01:01.4]} 24... Bxd4 {[%clk 0:01:02]} 25.
Nc4 {[%clk 0:01:01.3]} 25... Rxe1+ {[%clk 0:00:58.5]} 26. Rxe1 {[%clk
0:01:00.2]} 26... d5 {[%clk 0:00:53.2]} 27. Na5 {[%clk 0:00:54.2]} 27... g6
{[%clk 0:00:31.3]} 28. Qg4 {[%clk 0:00:53.4]} 28... Qxa5 {[%clk 0:00:19.2]} 29.
Re7 {[%clk 0:00:51.1]} 29... Rf8 {[%clk 0:00:09.8]} 30. Qxd4 {[%clk 0:00:47.4]}
30... Qd8 {[%clk 0:00:06.9]} 31. Qa7 {[%clk 0:00:42.6]} 1-0

[Event "*** Titled Tuesday Blitz"]
[Site "Chess.com"]
[Date "2020.05.19"]
[Round "7"]
[White "sergeikim"]
[Black "chessuriel"]
[Result "1-0"]
[WhiteElo "2378"]
[BlackElo "2167"]
[TimeControl "180+1"]
[EndTime "13:19:50 PDT"]
[Termination "sergeikim won by resignation"]

1. d4 {[%clk 0:03:00.9]} 1... Nf6 {[%clk 0:02:59.2]} 2. c4 {[%clk 0:03:01.2]}
2... e6 {[%clk 0:02:58.9]} 3. Nc3 {[%clk 0:03:01.1]} 3... Bb4 {[%clk 0:02:59]}
4. Qc2 {[%clk 0:03:01.2]} 4... c5 {[%clk 0:02:55.9]} 5. dxc5 {[%clk 0:03:00.2]}
5... Bxc5 {[%clk 0:02:54.2]} 6. Nf3 {[%clk 0:03:00.1]} 6... Qb6 {[%clk
0:02:53.7]} 7. e3 {[%clk 0:02:59.8]} 7... Qc7 {[%clk 0:02:54.1]} 8. Bd3 {[%clk
0:02:59]} 8... b6 {[%clk 0:02:52.9]} 9. O-O {[%clk 0:02:58.9]} 9... Bb7 {[%clk
0:02:52.6]} 10. b3 {[%clk 0:02:58.3]} 10... O-O {[%clk 0:02:49.6]} 11. Bb2
{[%clk 0:02:57.9]} 11... Be7 {[%clk 0:02:48.7]} 12. Rac1 {[%clk 0:02:56.9]}
12... d6 {[%clk 0:02:48.3]} 13. Ne4 {[%clk 0:02:56.2]} 13... Nxe4 {[%clk
0:02:39.3]} 14. Bxe4 {[%clk 0:02:56.1]} 14... Nd7 {[%clk 0:02:37.8]} 15. Bxh7+
{[%clk 0:02:53.9]} 15... Kh8 {[%clk 0:02:34.8]} 16. Be4 {[%clk 0:02:53.7]} 16...
f5 {[%clk 0:02:22.2]} 17. Bxb7 {[%clk 0:02:51.9]} 17... Qxb7 {[%clk 0:02:23.1]}
18. Nd4 {[%clk 0:02:44]} 18... Rf6 {[%clk 0:02:15.4]} 19. Rce1 {[%clk
0:02:28.8]} 19... Rg6 {[%clk 0:01:58.7]} 20. f3 {[%clk 0:02:26]} 20... Ne5
{[%clk 0:01:53.6]} 21. e4 {[%clk 0:02:17.1]} 21... f4 {[%clk 0:01:47.8]} 22. Ne2
{[%clk 0:02:05.9]} 22... Rf8 {[%clk 0:01:33]} 23. Rd1 {[%clk 0:02:01.9]} 23...
Qc6 {[%clk 0:01:25.5]} 24. Bd4 {[%clk 0:01:58]} 24... Qe8 {[%clk 0:01:24.4]} 25.
Qb2 {[%clk 0:01:49.9]} 25... Rg5 {[%clk 0:01:20.1]} 26. Rf2 {[%clk 0:01:39.6]}
26... Qh5 {[%clk 0:01:16.1]} 27. Kh1 {[%clk 0:01:33.1]} 27... Rf6 {[%clk
0:01:11.9]} 28. Ng1 {[%clk 0:01:32.3]} 28... Rh6 {[%clk 0:01:06.9]} 29. Nh3
{[%clk 0:01:31.6]} 29... Rg3 {[%clk 0:00:35.2]} 30. Bxe5 {[%clk 0:01:27.8]}
30... dxe5 {[%clk 0:00:34.8]} 31. hxg3 {[%clk 0:01:21]} 31... fxg3 {[%clk
0:00:24.2]} 32. Rfd2 {[%clk 0:01:20.5]} 32... Qg6 {[%clk 0:00:18.8]} 33. Qxe5
{[%clk 0:01:13.7]} 33... Bc5 {[%clk 0:00:17.4]} 34. Qf4 {[%clk 0:00:49.6]} 34...
Rh5 {[%clk 0:00:15.8]} 35. Qg4 {[%clk 0:00:47]} 35... Qh7 {[%clk 0:00:14.8]} 36.
Rd8+ {[%clk 0:00:45]} 1-0

[Event "*** Titled Tuesday Blitz"]
[Site "Chess.com"]
[Date "2020.05.19"]
[Round "7"]
[White "Kezin_Roman"]
[Black "vladislavkovalev"]
[Result "0-1"]
[WhiteElo "2751"]
[BlackElo "2910"]
[TimeControl "180+1"]
[EndTime "13:19:51 PDT"]
[Termination "vladislavkovalev won on time"]

1. d4 {[%clk 0:03:00.7]} 1... Nf6 {[%clk 0:02:57.4]} 2. c4 {[%clk 0:03:01.3]}
2... e6 {[%clk 0:02:57.1]} 3. g3 {[%clk 0:03:00.9]} 3... d5 {[%clk 0:02:57.3]}
4. Bg2 {[%clk 0:03:01]} 4... Be7 {[%clk 0:02:58.1]} 5. Nf3 {[%clk 0:03:01.4]}
5... O-O {[%clk 0:02:58.7]} 6. O-O {[%clk 0:03:02.1]} 6... dxc4 {[%clk
0:02:59.1]} 7. Qc2 {[%clk 0:03:02.6]} 7... a6 {[%clk 0:02:59.2]} 8. a4 {[%clk
0:03:03]} 8... Bd7 {[%clk 0:02:59.8]} 9. Bg5 {[%clk 0:03:03.3]} 9... Bc6 {[%clk
0:02:56.6]} 10. Bxf6 {[%clk 0:03:03.6]} 10... Bxf6 {[%clk 0:02:56.6]} 11. Rd1
{[%clk 0:03:04.3]} 11... b5 {[%clk 0:02:42]} 12. Nc3 {[%clk 0:03:04]} 12... Qe7
{[%clk 0:02:37.8]} 13. e4 {[%clk 0:02:59.7]} 13... g6 {[%clk 0:02:37.9]} 14.
axb5 {[%clk 0:02:16.1]} 14... axb5 {[%clk 0:02:38.8]} 15. Rxa8 {[%clk
0:02:16.9]} 15... Bxa8 {[%clk 0:02:39.5]} 16. Nxb5 {[%clk 0:02:17.5]} 16... Qb4
{[%clk 0:02:33.8]} 17. Nxc7 {[%clk 0:02:02.5]} 17... Bb7 {[%clk 0:02:33.8]} 18.
d5 {[%clk 0:02:02.7]} 18... Qc5 {[%clk 0:02:17]} 19. d6 {[%clk 0:01:33.1]} 19...
Nd7 {[%clk 0:02:17.2]} 20. e5 {[%clk 0:00:44]} 20... Bxf3 {[%clk 0:02:08.3]} 21.
Bxf3 {[%clk 0:00:36]} 21... Nxe5 {[%clk 0:02:08.7]} 22. Bg2 {[%clk 0:00:32]}
22... Rd8 {[%clk 0:01:58.3]} 23. h3 {[%clk 0:00:22.7]} 23... Kf8 {[%clk
0:01:32.9]} 24. Qd2 {[%clk 0:00:14.9]} 24... Nd3 {[%clk 0:01:22.4]} 25. b3
{[%clk 0:00:07.8]} 25... Rxd6 {[%clk 0:01:07]} 26. bxc4 {[%clk 0:00:05]} 26...
Qxc7 {[%clk 0:01:03.7]} 27. Bf1 {[%clk 0:00:05.6]} 27... e5 {[%clk 0:00:49.3]}
28. Qe3 {[%clk 0:00:01.8]} 28... Nc5 {[%clk 0:00:46.1]} 0-1

[Event "*** Titled Tuesday Blitz"]
[Site "Chess.com"]
[Date "2020.05.19"]
[Round "7"]
[White "viviania"]
[Black "AlexVanGog"]
[Result "1-0"]
[WhiteElo "2887"]
[BlackElo "2695"]
[TimeControl "180+1"]
[EndTime "13:19:51 PDT"]
[Termination "viviania won by resignation"]

1. e4 {[%clk 0:03:00.9]} 1... c5 {[%clk 0:02:59]} 2. Nf3 {[%clk 0:02:59.9]} 2...
e6 {[%clk 0:02:59.4]} 3. d4 {[%clk 0:02:58.8]} 3... cxd4 {[%clk 0:03:00]} 4.
Nxd4 {[%clk 0:02:58.9]} 4... Nc6 {[%clk 0:03:00.5]} 5. Nb5 {[%clk 0:02:58.5]}
5... d6 {[%clk 0:02:58.6]} 6. c4 {[%clk 0:02:58.6]} 6... a6 {[%clk 0:02:58.1]}
7. N5c3 {[%clk 0:02:57.9]} 7... Nf6 {[%clk 0:02:58.7]} 8. Be2 {[%clk 0:02:57.7]}
8... Be7 {[%clk 0:02:58.9]} 9. O-O {[%clk 0:02:57.4]} 9... O-O {[%clk
0:02:59.4]} 10. Be3 {[%clk 0:02:56.9]} 10... b6 {[%clk 0:02:59.1]} 11. Nd2
{[%clk 0:02:53.1]} 11... Bb7 {[%clk 0:02:59]} 12. Rc1 {[%clk 0:02:49.9]} 12...
Ne5 {[%clk 0:02:56.2]} 13. Re1 {[%clk 0:02:37.9]} 13... Ned7 {[%clk 0:02:56]}
14. Bf1 {[%clk 0:02:35.8]} 14... Rc8 {[%clk 0:02:55.9]} 15. f3 {[%clk
0:02:35.3]} 15... Qc7 {[%clk 0:02:55.9]} 16. a3 {[%clk 0:02:28.1]} 16... Qb8
{[%clk 0:02:55.9]} 17. b4 {[%clk 0:02:24.2]} 17... Bd8 {[%clk 0:02:56.3]} 18.
Kh1 {[%clk 0:02:22]} 18... Bc7 {[%clk 0:02:56.6]} 19. Bg1 {[%clk 0:02:21.6]}
19... Rfe8 {[%clk 0:02:57.1]} 20. Nb3 {[%clk 0:02:20.7]} 20... h6 {[%clk
0:02:45.6]} 21. Qd2 {[%clk 0:02:17.9]} 21... Qa8 {[%clk 0:02:45.2]} 22. Na4
{[%clk 0:02:13]} 22... Qb8 {[%clk 0:02:39.2]} 23. Rcd1 {[%clk 0:01:57]} 23...
Bc6 {[%clk 0:02:34.8]} 24. Nb2 {[%clk 0:01:56.1]} 24... b5 {[%clk 0:02:34.7]}
25. Nd4 {[%clk 0:01:52.1]} 25... Qb7 {[%clk 0:02:10]} 26. Nxc6 {[%clk
0:01:38.5]} 26... Qxc6 {[%clk 0:02:10.9]} 27. cxb5 {[%clk 0:01:38.3]} 27... axb5
{[%clk 0:02:10.3]} 28. Rc1 {[%clk 0:01:34.7]} 28... Qb7 {[%clk 0:02:09.7]} 29.
Qd3 {[%clk 0:01:34.8]} 29... Qa8 {[%clk 0:01:52]} 30. Rc3 {[%clk 0:01:02.5]}
30... d5 {[%clk 0:01:50.8]} 31. Qxb5 {[%clk 0:00:46.8]} 31... dxe4 {[%clk
0:01:45.4]} 32. fxe4 {[%clk 0:00:46.7]} 32... Be5 {[%clk 0:01:38.4]} 33. Rxc8
{[%clk 0:00:44.2]} 33... Rxc8 {[%clk 0:01:38.9]} 34. Nc4 {[%clk 0:00:38.1]}
34... Bc3 {[%clk 0:01:13.5]} 35. Rd1 {[%clk 0:00:28.3]} 35... Nf8 {[%clk
0:01:04.5]} 36. Nb6 {[%clk 0:00:25.7]} 36... Qxe4 {[%clk 0:00:57.4]} 37. Nxc8
{[%clk 0:00:25.1]} 37... Ng4 {[%clk 0:00:54.7]} 38. Qe2 {[%clk 0:00:23.9]} 38...
Qf4 {[%clk 0:00:53.9]} 39. g3 {[%clk 0:00:21.3]} 39... Qf5 {[%clk 0:00:51.1]}
40. Ne7+ {[%clk 0:00:20.4]} 1-0

[Event "*** Titled Tuesday Blitz"]
[Site "Chess.com"]
[Date "2020.05.19"]
[Round "7"]
[White "IAgrest"]
[Black "FrogMist"]
[Result "1-0"]
[WhiteElo "2259"]
[BlackElo "2369"]
[TimeControl "180+1"]
[EndTime "13:19:55 PDT"]
[Termination "IAgrest won by resignation"]

1. e4 {[%clk 0:03:00.9]} 1... e5 {[%clk 0:02:59.8]} 2. Nf3 {[%clk 0:03:00.6]}
2... Nc6 {[%clk 0:02:59.7]} 3. Bb5 {[%clk 0:03:00.2]} 3... a6 {[%clk 0:03:00.2]}
4. Ba4 {[%clk 0:03:00.6]} 4... Nf6 {[%clk 0:02:58.8]} 5. O-O {[%clk 0:03:00.8]}
5... Be7 {[%clk 0:02:57]} 6. Re1 {[%clk 0:03:00]} 6... b5 {[%clk 0:02:57.6]} 7.
Bb3 {[%clk 0:03:00.4]} 7... O-O {[%clk 0:02:58.2]} 8. h3 {[%clk 0:03:00.8]} 8...
d5 {[%clk 0:02:57.5]} 9. c3 {[%clk 0:03:01.2]} 9... dxe4 {[%clk 0:02:50.3]} 10.
Ng5 {[%clk 0:03:00.4]} 10... Bf5 {[%clk 0:02:42.6]} 11. Bc2 {[%clk 0:02:57.3]}
11... Qd5 {[%clk 0:02:38.1]} 12. f3 {[%clk 0:02:50.5]} 12... Bc5+ {[%clk
0:02:31.4]} 13. Kh2 {[%clk 0:02:31.5]} 13... exf3 {[%clk 0:02:21.9]} 14. Bxf5
{[%clk 0:02:24.5]} 14... e4 {[%clk 0:02:13.9]} 15. g4 {[%clk 0:01:56.6]} 15...
Qe5+ {[%clk 0:02:09.9]} 16. Kh1 {[%clk 0:01:51.6]} 16... Qg3 {[%clk 0:02:08.7]}
17. Rg1 {[%clk 0:01:48]} 17... Bxg1 {[%clk 0:02:06.4]} 18. Qxg1 {[%clk
0:01:47.3]} 18... Qh4 {[%clk 0:02:03]} 19. d3 {[%clk 0:01:19.2]} 19... exd3
{[%clk 0:01:59.3]} 20. Bf4 {[%clk 0:01:11.3]} 20... f2 {[%clk 0:01:55.3]} 21.
Qf1 {[%clk 0:01:02.5]} 21... Rfe8 {[%clk 0:01:53.1]} 22. Nd2 {[%clk 0:00:43]}
22... Re1 {[%clk 0:01:52.6]} 23. Ndf3 {[%clk 0:00:27.2]} 23... Rxf1+ {[%clk
0:01:52.3]} 24. Rxf1 {[%clk 0:00:26.3]} 24... Qh6 {[%clk 0:01:45.2]} 25. Rxf2
{[%clk 0:00:24.4]} 25... Re8 {[%clk 0:01:39.9]} 26. Kg2 {[%clk 0:00:23.8]} 26...
Re2 {[%clk 0:01:38]} 27. Bxd3 {[%clk 0:00:20.6]} 27... Rxf2+ {[%clk 0:01:35.4]}
28. Kxf2 {[%clk 0:00:21.3]} 28... Nd5 {[%clk 0:01:34.9]} 29. Bd2 {[%clk
0:00:15.4]} 29... Qh4+ {[%clk 0:01:29.8]} 30. Nxh4 {[%clk 0:00:14.7]} 30... h6
{[%clk 0:01:24]} 31. Ne4 {[%clk 0:00:14.2]} 31... Ne5 {[%clk 0:01:23.5]} 32. Be2
{[%clk 0:00:14.4]} 32... c6 {[%clk 0:01:12.3]} 33. Nf3 {[%clk 0:00:14.4]} 33...
Nd7 {[%clk 0:01:08.3]} 34. Nd4 {[%clk 0:00:13.8]} 34... Ne5 {[%clk 0:01:07.1]}
35. b3 {[%clk 0:00:11.1]} 35... a5 {[%clk 0:01:06.4]} 36. c4 {[%clk 0:00:10.8]}
36... bxc4 {[%clk 0:01:05.9]} 37. bxc4 {[%clk 0:00:11.7]} 37... Nb4 {[%clk
0:00:59.3]} 38. Bxb4 {[%clk 0:00:11.3]} 38... axb4 {[%clk 0:01:00.2]} 39. Nc5
{[%clk 0:00:09.5]} 39... g6 {[%clk 0:00:59.6]} 40. Nf3 {[%clk 0:00:09.3]} 40...
b3 {[%clk 0:00:56.7]} 41. axb3 {[%clk 0:00:09.2]} 1-0

[Event "*** Titled Tuesday Blitz"]
[Site "Chess.com"]
[Date "2020.05.19"]
[Round "7"]
[White "Rodalquilar"]
[Black "mrkvoz"]
[Result "0-1"]
[WhiteElo "2645"]
[BlackElo "2819"]
[TimeControl "180+1"]
[EndTime "13:19:56 PDT"]
[Termination "mrkvoz won on time"]

1. d4 {[%clk 0:03:00.9]} 1... d6 {[%clk 0:03:00.4]} 2. c4 {[%clk 0:02:55.3]}
2... e5 {[%clk 0:02:59.8]} 3. Nf3 {[%clk 0:02:55.6]} 3... e4 {[%clk 0:02:59.4]}
4. Ng5 {[%clk 0:02:56.1]} 4... f5 {[%clk 0:02:59.7]} 5. Nc3 {[%clk 0:02:54.4]}
5... Be7 {[%clk 0:02:59.9]} 6. Nh3 {[%clk 0:02:52.5]} 6... Nf6 {[%clk
0:02:57.3]} 7. g3 {[%clk 0:02:52.3]} 7... c6 {[%clk 0:02:56.2]} 8. Bg2 {[%clk
0:02:51.3]} 8... Nbd7 {[%clk 0:02:56.5]} 9. O-O {[%clk 0:02:51.6]} 9... Nb6
{[%clk 0:02:56.6]} 10. b3 {[%clk 0:02:36.7]} 10... d5 {[%clk 0:02:56.8]} 11. a4
{[%clk 0:02:28]} 11... dxc4 {[%clk 0:02:47.2]} 12. a5 {[%clk 0:02:16.1]} 12...
Nbd5 {[%clk 0:02:47.2]} 13. Nxd5 {[%clk 0:02:16.1]} 13... Qxd5 {[%clk 0:02:46]}
14. Nf4 {[%clk 0:02:13.1]} 14... Qf7 {[%clk 0:02:46.2]} 15. bxc4 {[%clk
0:02:01.5]} 15... Qxc4 {[%clk 0:02:47.1]} 16. Bb2 {[%clk 0:01:43.1]} 16... O-O
{[%clk 0:02:45.2]} 17. a6 {[%clk 0:01:43.6]} 17... Bd6 {[%clk 0:02:37.7]} 18.
axb7 {[%clk 0:01:39.8]} 18... Bxb7 {[%clk 0:02:38.6]} 19. Rc1 {[%clk 0:01:39.3]}
19... Qf7 {[%clk 0:02:38.1]} 20. Qa4 {[%clk 0:01:34.2]} 20... a5 {[%clk
0:02:35.4]} 21. Rfd1 {[%clk 0:01:31]} 21... Nd5 {[%clk 0:02:17.3]} 22. e3 {[%clk
0:01:24.8]} 22... g5 {[%clk 0:02:01.7]} 23. Nh3 {[%clk 0:00:50.7]} 23... h6
{[%clk 0:01:56.5]} 24. Bf1 {[%clk 0:00:23.3]} 24... f4 {[%clk 0:01:51.9]} 25.
Rxc6 {[%clk 0:00:20.7]} 25... Bxc6 {[%clk 0:01:49.8]} 26. Qxc6 {[%clk
0:00:20.6]} 26... Rad8 {[%clk 0:01:49.7]} 27. Bc4 {[%clk 0:00:20.2]} 27... Be7
{[%clk 0:01:48.7]} 28. gxf4 {[%clk 0:00:18.4]} 28... Kh7 {[%clk 0:01:44.9]} 29.
Kh1 {[%clk 0:00:13.1]} 29... Qf5 {[%clk 0:01:43.2]} 30. Ng1 {[%clk 0:00:08.6]}
30... gxf4 {[%clk 0:01:42.8]} 31. exf4 {[%clk 0:00:05.7]} 31... Nxf4 {[%clk
0:01:35.8]} 32. d5 {[%clk 0:00:05.7]} 32... Bd6 {[%clk 0:01:30.1]} 33. Qb7+
{[%clk 0:00:03.8]} 33... Rf7 {[%clk 0:01:29.9]} 34. Qb6 {[%clk 0:00:04.4]} 34...
Qg6 {[%clk 0:01:10.7]} 35. Bf1 {[%clk 0:00:03.6]} 35... Rg8 {[%clk 0:01:07.4]}
36. Nh3 {[%clk 0:00:03.6]} 36... Qg4 {[%clk 0:00:49.4]} 0-1

[Event "*** Titled Tuesday Blitz"]
[Site "Chess.com"]
[Date "2020.05.19"]
[Round "7"]
[White "Aradej"]
[Black "Bubi6"]
[Result "0-1"]
[WhiteElo "2458"]
[BlackElo "2605"]
[TimeControl "180+1"]
[EndTime "13:19:56 PDT"]
[Termination "Bubi6 won by resignation"]

1. e4 {[%clk 0:03:00.9]} 1... c6 {[%clk 0:02:58.4]} 2. Nf3 {[%clk 0:02:58.6]}
2... d5 {[%clk 0:02:58.5]} 3. d3 {[%clk 0:02:59.2]} 3... Nf6 {[%clk 0:02:54.6]}
4. Nbd2 {[%clk 0:02:56.7]} 4... Bg4 {[%clk 0:02:47.4]} 5. h3 {[%clk 0:02:56.7]}
5... Bxf3 {[%clk 0:02:47.2]} 6. Qxf3 {[%clk 0:02:54.8]} 6... e5 {[%clk
0:02:47.5]} 7. Be2 {[%clk 0:02:52.5]} 7... Bc5 {[%clk 0:02:46.3]} 8. O-O {[%clk
0:02:51.3]} 8... O-O {[%clk 0:02:46]} 9. c3 {[%clk 0:02:49.4]} 9... a5 {[%clk
0:02:43.4]} 10. Qg3 {[%clk 0:02:49.1]} 10... Nbd7 {[%clk 0:02:38.4]} 11. a4
{[%clk 0:02:47.4]} 11... Kh8 {[%clk 0:02:36.9]} 12. Bd1 {[%clk 0:02:45.1]} 12...
Ba7 {[%clk 0:02:32.2]} 13. Bc2 {[%clk 0:02:43]} 13... Nc5 {[%clk 0:02:28.8]} 14.
Re1 {[%clk 0:02:42.8]} 14... Re8 {[%clk 0:02:27.3]} 15. Nf3 {[%clk 0:02:40.6]}
15... dxe4 {[%clk 0:02:13.2]} 16. Nxe5 {[%clk 0:02:35.9]} 16... Rxe5 {[%clk
0:01:39.8]} 17. Qxe5 {[%clk 0:02:34.2]} 17... exd3 {[%clk 0:01:40.3]} 18. Rd1
{[%clk 0:02:27.7]} 18... Ncd7 {[%clk 0:01:38.8]} 19. Qf5 {[%clk 0:02:21.9]}
19... dxc2 {[%clk 0:01:37.6]} 20. Qxc2 {[%clk 0:02:21.6]} 20... h6 {[%clk
0:01:32.3]} 21. Bf4 {[%clk 0:02:09.6]} 21... Qb6 {[%clk 0:01:30.7]} 22. Be3
{[%clk 0:02:08.3]} 22... Qa6 {[%clk 0:01:29.9]} 23. Bxa7 {[%clk 0:02:08.1]}
23... Qxa7 {[%clk 0:01:29.2]} 24. Rd4 {[%clk 0:02:02.3]} 24... Qc5 {[%clk
0:01:25.2]} 25. Qb3 {[%clk 0:02:01.5]} 25... Qe7 {[%clk 0:01:05]} 26. Qxb7
{[%clk 0:02:00.4]} 26... Rb8 {[%clk 0:01:05.3]} 27. Qxc6 {[%clk 0:01:58.6]}
27... Rxb2 {[%clk 0:01:04.7]} 28. Qa8+ {[%clk 0:01:57.9]} 28... Kh7 {[%clk
0:01:02.8]} 29. Qxa5 {[%clk 0:01:57.6]} 29... Ne5 {[%clk 0:00:55.2]} 30. Qd8
{[%clk 0:01:49.7]} 30... Qe6 {[%clk 0:00:49.1]} 31. Rf4 {[%clk 0:01:24.7]} 31...
Ng6 {[%clk 0:00:44.6]} 32. Rf3 {[%clk 0:01:14.8]} 32... Ne4 {[%clk 0:00:41.2]}
33. a5 {[%clk 0:01:12.2]} 33... Ng5 {[%clk 0:00:32.9]} 34. Rg3 {[%clk
0:01:10.1]} 34... Qf5 {[%clk 0:00:32.2]} 35. Qd4 {[%clk 0:01:08.8]} 35... Ne6
{[%clk 0:00:24.7]} 36. Qe3 {[%clk 0:01:05]} 36... Ngf4 {[%clk 0:00:17.3]} 37. a6
{[%clk 0:01:04.1]} 37... Ne2+ {[%clk 0:00:17.1]} 38. Kh2 {[%clk 0:01:03.5]}
38... Nxg3 {[%clk 0:00:17.4]} 39. Qxg3 {[%clk 0:00:59.2]} 39... Qd5 {[%clk
0:00:13.7]} 40. a7 {[%clk 0:00:58.4]} 40... Qa8 {[%clk 0:00:14.1]} 41. Qb8
{[%clk 0:00:56.9]} 41... Rxb8 {[%clk 0:00:11.8]} 0-1